[Event "Titled Tuesday Blitz May 23 Late 2023"]
[White "Toncheva, Nadya"]
[Black "Bogaudinov, Rushan"]
[WhiteFideId "2924056"]
[BlackFideId "4129288"]
[WhiteElo "2101"]
[BlackElo "1941"]
[Result "1-0"]
[Round "10"]
[TimeControl "180+2"]
[Date "2023.05.23"]
[WhiteClock "0:00:04"]
[BlackClock "0:00:08"]

1. d4 {[%clk 0:03:00]}  d5 {[%clk 0:02:58]} 2. c4 {[%clk 0:03:00]}  dxc4 {[%clk 0:02:58]} 3. e3 {[%clk 0:03:00]}  e6 {[%clk 0:02:57]} 4. Bxc4 {[%clk 0:03:00]}  Nf6 {[%clk 0:02:57]} 5. Nf3 {[%clk 0:03:01]}  Be7 {[%clk 0:02:57]} 6. O-O {[%clk 0:03:01]}  O-O {[%clk 0:02:57]} 7. Nc3 {[%clk 0:03:00]}  a6 {[%clk 0:02:56]} 8. e4 {[%clk 0:03:00]}  b5 {[%clk 0:02:56]} 9. Bd3 {[%clk 0:03:00]}  Bb7 {[%clk 0:02:57]} 10. e5 {[%clk 0:02:51]}  Nfd7 {[%clk 0:02:52]} 11. Qc2 {[%clk 0:02:45]}  g6 {[%clk 0:02:44]} 12. Bh6 {[%clk 0:02:43]}  Re8 {[%clk 0:02:42]} 13. Ne4 {[%clk 0:02:43]}  Nc6 {[%clk 0:02:32]} 14. a3 {[%clk 0:02:41]}  Na5 {[%clk 0:02:25]} 15. Rfd1 {[%clk 0:02:37]}  Nc4 {[%clk 0:02:24]} 16. Ng3 {[%clk 0:02:25]}  Bxf3 {[%clk 0:02:18]} 17. gxf3 {[%clk 0:02:26]}  Ndb6 {[%clk 0:02:17]} 18. Be4 {[%clk 0:02:11]}  Nd5 {[%clk 0:02:11]} 19. a4 {[%clk 0:01:47]}  Qd7 {[%clk 0:02:09]} 20. b3 {[%clk 0:01:44]}  Na5 {[%clk 0:01:57]} 21. axb5 {[%clk 0:01:20]}  axb5 {[%clk 0:01:57]} 22. Rab1 {[%clk 0:01:11]}  Rec8 {[%clk 0:01:54]} 23. Qd3 {[%clk 0:00:59]}  b4 {[%clk 0:01:49]} 24. Bxd5 {[%clk 0:00:56]}  Qxd5 {[%clk 0:01:49]} 25. Ne4 {[%clk 0:00:56]}  Nb7 {[%clk 0:01:42]} 26. Bg5 {[%clk 0:00:56]}  Bxg5 {[%clk 0:01:36]} 27. Nxg5 {[%clk 0:00:57]}  c5 {[%clk 0:01:30]} 28. Ne4 {[%clk 0:00:57]}  Qxd4 {[%clk 0:01:29]} 29. Qb5 {[%clk 0:00:51]}  Qxe5 {[%clk 0:01:19]} 30. Qxb7 {[%clk 0:00:51]}  Rab8 {[%clk 0:01:12]} 31. Qd7 {[%clk 0:00:49]}  Rc7 {[%clk 0:01:07]} 32. Qd3 {[%clk 0:00:48]}  Kg7 {[%clk 0:00:56]} 33. Rbc1 {[%clk 0:00:46]}  h5 {[%clk 0:00:55]} 34. Qe3 {[%clk 0:00:45]}  h4 {[%clk 0:00:51]} 35. Nxc5 {[%clk 0:00:43]}  Qxe3 {[%clk 0:00:48]} 36. fxe3 {[%clk 0:00:43]}  Rbc8 {[%clk 0:00:46]} 37. Nd3 {[%clk 0:00:43]}  Rc3 {[%clk 0:00:46]} 38. Rxc3 {[%clk 0:00:34]}  Rxc3 {[%clk 0:00:45]} 39. Nxb4 {[%clk 0:00:27]}  Rxe3 {[%clk 0:00:35]} 40. Rd3 {[%clk 0:00:27]}  Re2 {[%clk 0:00:32]} 41. Nc6 {[%clk 0:00:25]}  g5 {[%clk 0:00:29]} 42. b4 {[%clk 0:00:25]}  h3 {[%clk 0:00:29]} 43. b5 {[%clk 0:00:22]}  Rb2 {[%clk 0:00:27]} 44. Nd4 {[%clk 0:00:21]}  e5 {[%clk 0:00:26]} 45. Nf5+ {[%clk 0:00:17]}  Kf6 {[%clk 0:00:24]} 46. Nd6 {[%clk 0:00:17]}  Ke6 {[%clk 0:00:23]} 47. Ne8 {[%clk 0:00:09]}  Rg2+ {[%clk 0:00:16]} 48. Kf1 {[%clk 0:00:09]}  Rxh2 {[%clk 0:00:16]} 49. Rb3 {[%clk 0:00:06]}  Rc2 {[%clk 0:00:13]} 50. Kg1 {[%clk 0:00:06]}  Kf5 {[%clk 0:00:10]} 51. b6 {[%clk 0:00:06]}  Kf4 {[%clk 0:00:10]} 52. b7 {[%clk 0:00:05]}  Rc1+ {[%clk 0:00:09]} 53. Kh2 {[%clk 0:00:05]}  Rc2+ {[%clk 0:00:09]} 54. Kxh3 {[%clk 0:00:05]}  Rc1 {[%clk 0:00:08]} 55. b8=Q {[%clk 0:00:04]}  f5 {[%clk 0:00:08]} 56. Qb4+ {[%clk 0:00:03]}  e4 {[%clk 0:00:08]} 57. Qd6# {[%clk 0:00:04]} 1-0


[Site "https://www.chess.com"]

[Event "Titled Tuesday Blitz May 23 Late 2023"]
[White "Alexikov, Alexander"]
[Black "Moral Garcia, Serafin"]
[WhiteFideId "14103958"]
[BlackFideId "2201925"]
[WhiteElo "2186"]
[BlackElo "2274"]
[Result "0-1"]
[Round "10"]
[TimeControl "180+2"]
[Date "2023.05.23"]
[WhiteClock "0:00:00"]
[BlackClock "0:00:27"]

1. e4 {[%clk 0:03:00]}  e5 {[%clk 0:02:59]} 2. Nf3 {[%clk 0:03:00]}  Nc6 {[%clk 0:02:59]} 3. c3 {[%clk 0:03:01]}  Nf6 {[%clk 0:02:58]} 4. d4 {[%clk 0:03:00]}  exd4 {[%clk 0:02:59]} 5. e5 {[%clk 0:02:59]}  Nd5 {[%clk 0:02:58]} 6. Bb5 {[%clk 0:02:58]}  d6 {[%clk 0:02:56]} 7. Nxd4 {[%clk 0:02:56]}  Bd7 {[%clk 0:02:54]} 8. Nf3 {[%clk 0:02:37]}  Nb6 {[%clk 0:02:19]} 9. Qe2 {[%clk 0:02:35]}  Qe7 {[%clk 0:02:12]} 10. Bg5 {[%clk 0:02:32]}  Qe6 {[%clk 0:02:09]} 11. exd6 {[%clk 0:02:08]}  Qxe2+ {[%clk 0:02:07]} 12. Kxe2 {[%clk 0:01:56]}  Bxd6 {[%clk 0:02:07]} 13. Re1 {[%clk 0:01:56]}  O-O {[%clk 0:01:53]} 14. Nbd2 {[%clk 0:01:55]}  a6 {[%clk 0:01:51]} 15. Bd3 {[%clk 0:01:54]}  h6 {[%clk 0:01:47]} 16. Bh4 {[%clk 0:01:53]}  Rfe8+ {[%clk 0:01:47]} 17. Kf1 {[%clk 0:01:51]}  f5 {[%clk 0:01:40]} 18. h3 {[%clk 0:00:58]}  g5 {[%clk 0:01:38]} 19. Bg3 {[%clk 0:00:57]}  f4 {[%clk 0:01:38]} 20. Bh2 {[%clk 0:00:56]}  Ne5 {[%clk 0:01:39]} 21. Bc2 {[%clk 0:00:50]}  Bb5+ {[%clk 0:01:32]} 22. Kg1 {[%clk 0:00:48]}  Nd3 {[%clk 0:01:29]} 23. Rxe8+ {[%clk 0:00:41]}  Rxe8 {[%clk 0:01:28]} 24. c4 {[%clk 0:00:41]}  Nxc4 {[%clk 0:01:12]} 25. Bb3 {[%clk 0:00:19]}  Nxb2 {[%clk 0:00:58]} 26. a4 {[%clk 0:00:18]}  Bxa4 {[%clk 0:00:47]} 27. Bxc4+ {[%clk 0:00:15]}  Nxc4 {[%clk 0:00:46]} 28. Nxc4 {[%clk 0:00:15]}  Bb5 {[%clk 0:00:42]} 29. Nxd6 {[%clk 0:00:15]}  cxd6 {[%clk 0:00:42]} 30. g3 {[%clk 0:00:10]}  Re4 {[%clk 0:00:37]} 31. gxf4 {[%clk 0:00:08]}  gxf4 {[%clk 0:00:38]} 32. Re1 {[%clk 0:00:07]}  Bc6 {[%clk 0:00:35]} 33. Rxe4 {[%clk 0:00:06]}  Bxe4 {[%clk 0:00:35]} 34. Nd2 {[%clk 0:00:06]}  Bd3 {[%clk 0:00:34]} 35. Bxf4 {[%clk 0:00:05]}  d5 {[%clk 0:00:35]} 36. Bxh6 {[%clk 0:00:05]}  a5 {[%clk 0:00:32]} 37. Be3 {[%clk 0:00:04]}  b5 {[%clk 0:00:30]} 38. Bb6 {[%clk 0:00:04]}  a4 {[%clk 0:00:30]} 39. Bc5 {[%clk 0:00:04]}  Kf7 {[%clk 0:00:29]} 40. f4 {[%clk 0:00:02]}  Kf6 {[%clk 0:00:29]} 41. Kf2 {[%clk 0:00:02]}  Kf5 {[%clk 0:00:30]} 42. Ke3 {[%clk 0:00:02]}  Bc2 {[%clk 0:00:29]} 43. h4 {[%clk 0:00:02]}  Kg4 {[%clk 0:00:29]} 44. Be7 {[%clk 0:00:02]}  b4 {[%clk 0:00:26]} 45. Bxb4 {[%clk 0:00:00]}  Kxh4 {[%clk 0:00:27]} 0-1


[Site "https://www.chess.com"]

[Event "Titled Tuesday Blitz May 23 Late 2023"]
[White "Sarkar, Justin"]
[Black "Kim, Sergey"]
[WhiteFideId "2010011"]
[BlackFideId "13700570"]
[WhiteElo "2168"]
[BlackElo "2475"]
[Result "0-1"]
[Round "10"]
[TimeControl "180+2"]
[Date "2023.05.23"]
[WhiteClock "0:00:00"]
[BlackClock "0:00:13"]

1. e4 {[%clk 0:02:42]}  e5 {[%clk 0:02:59]} 2. f4 {[%clk 0:02:41]}  Bc5 {[%clk 0:02:58]} 3. Nf3 {[%clk 0:02:40]}  d6 {[%clk 0:02:59]} 4. c3 {[%clk 0:02:40]}  Nc6 {[%clk 0:02:59]} 5. Bb5 {[%clk 0:02:31]}  Bd7 {[%clk 0:02:55]} 6. d4 {[%clk 0:02:25]}  exd4 {[%clk 0:02:54]} 7. cxd4 {[%clk 0:02:22]}  Bb6 {[%clk 0:02:55]} 8. O-O {[%clk 0:02:15]}  Nf6 {[%clk 0:02:39]} 9. Nc3 {[%clk 0:02:10]}  O-O {[%clk 0:02:35]} 10. e5 {[%clk 0:01:52]}  Ng4 {[%clk 0:02:21]} 11. Kh1 {[%clk 0:01:36]}  Nh6 {[%clk 0:01:34]} 12. d5 {[%clk 0:01:10]}  Ne7 {[%clk 0:01:25]} 13. Bc4 {[%clk 0:01:07]}  Bg4 {[%clk 0:01:15]} 14. h3 {[%clk 0:00:58]}  Bxf3 {[%clk 0:01:10]} 15. Qxf3 {[%clk 0:00:57]}  Nhf5 {[%clk 0:01:08]} 16. Bd2 {[%clk 0:00:46]}  Ng6 {[%clk 0:00:59]} 17. Rae1 {[%clk 0:00:16]}  Qh4 {[%clk 0:00:55]} 18. Kh2 {[%clk 0:00:12]}  Rae8 {[%clk 0:00:41]} 19. e6 {[%clk 0:00:05]}  Nd4 {[%clk 0:00:37]} 20. Qg4 {[%clk 0:00:03]}  Qxg4 {[%clk 0:00:20]} 21. hxg4 {[%clk 0:00:03]}  a6 {[%clk 0:00:19]} 22. f5 {[%clk 0:00:03]}  Ne5 {[%clk 0:00:19]} 23. Re4 {[%clk 0:00:03]}  Nxc4 {[%clk 0:00:18]} 24. Rd1 {[%clk 0:00:01]}  Nxb2 {[%clk 0:00:17]} 25. Rb1 {[%clk 0:00:01]}  Nc4 {[%clk 0:00:17]} 26. Be1 {[%clk 0:00:01]}  Bc5 {[%clk 0:00:14]} 27. Bf2 {[%clk 0:00:00]}  Nb5 {[%clk 0:00:13]} 0-1


[Site "https://www.chess.com"]

[Event "Titled Tuesday Blitz May 23 Late 2023"]
[White "Kaplan, Avi Harrison"]
[Black "Weinstein, Joshua Ross"]
[WhiteFideId "30934559"]
[BlackFideId "30927714"]
[WhiteElo "1983"]
[BlackElo "2343"]
[Result "1-0"]
[Round "10"]
[TimeControl "180+2"]
[Date "2023.05.23"]
[WhiteClock "0:01:11"]
[BlackClock "0:00:06"]

1. f3 {[%clk 0:03:00]}  e5 {[%clk 0:02:59]} 2. Nc3 {[%clk 0:03:01]}  d5 {[%clk 0:02:59]} 3. e4 {[%clk 0:03:00]}  d4 {[%clk 0:02:56]} 4. Nce2 {[%clk 0:02:59]}  Nc6 {[%clk 0:02:55]} 5. d3 {[%clk 0:02:58]}  f5 {[%clk 0:02:55]} 6. exf5 {[%clk 0:02:55]}  Bxf5 {[%clk 0:02:54]} 7. f4 {[%clk 0:02:56]}  Bb4+ {[%clk 0:02:48]} 8. c3 {[%clk 0:02:55]}  dxc3 {[%clk 0:02:48]} 9. bxc3 {[%clk 0:02:56]}  Bd6 {[%clk 0:02:46]} 10. Ng3 {[%clk 0:02:51]}  Nge7 {[%clk 0:02:39]} 11. Nxf5 {[%clk 0:02:40]}  Nxf5 {[%clk 0:02:39]} 12. fxe5 {[%clk 0:02:41]}  Nxe5 {[%clk 0:02:35]} 13. d4 {[%clk 0:02:40]}  Qh4+ {[%clk 0:02:30]} 14. Kd2 {[%clk 0:02:40]}  Nxd4 {[%clk 0:02:15]} 15. cxd4 {[%clk 0:02:19]}  Qxd4+ {[%clk 0:02:14]} 16. Kc2 {[%clk 0:02:20]}  Qxa1 {[%clk 0:02:00]} 17. Bb5+ {[%clk 0:02:18]}  Kf7 {[%clk 0:01:48]} 18. Qd5+ {[%clk 0:02:01]}  Kf8 {[%clk 0:01:20]} 19. Ne2 {[%clk 0:01:59]}  Nd7 {[%clk 0:00:07]} 20. Bxd7 {[%clk 0:01:18]}  Qe5 {[%clk 0:00:06]} 21. Rf1+ {[%clk 0:01:17]}  Ke7 {[%clk 0:00:06]} 22. Rf7+ {[%clk 0:01:12]}  Kd8 {[%clk 0:00:06]} 23. Bg5+ {[%clk 0:01:11]}  Be7 {[%clk 0:00:06]} 1-0


[Site "https://www.chess.com"]

[Event "Titled Tuesday Blitz May 23 Late 2023"]
[White "Alahakoon, Isuru"]
[Black "merinasian"]
[WhiteFideId "9900993"]
[WhiteElo "1953"]
[BlackElo "2444"]
[Result "1-0"]
[Round "10"]
[TimeControl "180+2"]
[Date "2023.05.23"]
[WhiteClock "0:00:50"]
[BlackClock "0:01:17"]

1. Nf3 {[%clk 0:02:25]}  Nf6 {[%clk 0:02:57]} 2. d4 {[%clk 0:02:25]}  e6 {[%clk 0:02:57]} 3. Nc3 {[%clk 0:02:23]}  Bb4 {[%clk 0:02:53]} 4. Bd2 {[%clk 0:02:22]}  b6 {[%clk 0:02:51]} 5. g3 {[%clk 0:02:19]}  Bxc3 {[%clk 0:02:49]} 6. Bxc3 {[%clk 0:02:17]}  Ne4 {[%clk 0:02:49]} 7. Bd2 {[%clk 0:02:15]}  Bb7 {[%clk 0:02:47]} 8. Bg2 {[%clk 0:02:16]}  Nxd2 {[%clk 0:02:46]} 9. Qxd2 {[%clk 0:02:15]}  O-O {[%clk 0:02:46]} 10. O-O {[%clk 0:02:15]}  d6 {[%clk 0:02:46]} 11. Qd3 {[%clk 0:02:14]}  f5 {[%clk 0:02:43]} 12. Nd2 {[%clk 0:02:08]}  Bxg2 {[%clk 0:02:42]} 13. Kxg2 {[%clk 0:02:09]}  d5 {[%clk 0:02:42]} 14. Qe3 {[%clk 0:02:04]}  Qf6 {[%clk 0:02:32]} 15. f4 {[%clk 0:01:57]}  Nd7 {[%clk 0:02:22]} 16. Nf3 {[%clk 0:01:48]}  c5 {[%clk 0:02:22]} 17. Ne5 {[%clk 0:01:40]}  Nxe5 {[%clk 0:02:21]} 18. dxe5 {[%clk 0:01:36]}  Qe7 {[%clk 0:02:18]} 19. Rad1 {[%clk 0:01:27]}  Kh8 {[%clk 0:02:06]} 20. c4 {[%clk 0:01:23]}  d4 {[%clk 0:02:04]} 21. Qf3 {[%clk 0:01:23]}  g5 {[%clk 0:02:04]} 22. e3 {[%clk 0:01:21]}  g4 {[%clk 0:02:00]} 23. Qf2 {[%clk 0:01:09]}  Qb7+ {[%clk 0:01:58]} 24. Kg1 {[%clk 0:01:09]}  dxe3 {[%clk 0:01:53]} 25. Qxe3 {[%clk 0:01:08]}  Rad8 {[%clk 0:01:53]} 26. Rd6 {[%clk 0:01:07]}  Rde8 {[%clk 0:01:40]} 27. Rfd1 {[%clk 0:01:05]}  Re7 {[%clk 0:01:39]} 28. Qd3 {[%clk 0:01:00]}  Kg7 {[%clk 0:01:36]} 29. Rd8 {[%clk 0:00:53]}  Rxd8 {[%clk 0:01:30]} 30. Qxd8 {[%clk 0:00:52]}  Rf7 {[%clk 0:01:17]} 31. Qg5+ {[%clk 0:00:50]} 1-0


[Site "https://www.chess.com"]

[Event "Titled Tuesday Blitz May 23 Late 2023"]
[White "D`Arruda, Ricardo D."]
[Black "Almedina Ortiz, Edgardo J."]
[WhiteFideId "100692"]
[BlackFideId "3100197"]
[WhiteElo "2436"]
[BlackElo "2217"]
[Result "1-0"]
[Round "10"]
[TimeControl "180+2"]
[Date "2023.05.23"]
[WhiteClock "0:00:48"]
[BlackClock "0:00:00"]

1. d4 {[%clk 0:03:00]}  d5 {[%clk 0:02:58]} 2. Nf3 {[%clk 0:02:59]}  Nf6 {[%clk 0:02:57]} 3. c4 {[%clk 0:02:59]}  e6 {[%clk 0:02:56]} 4. Nc3 {[%clk 0:02:59]}  c5 {[%clk 0:02:42]} 5. e3 {[%clk 0:02:58]}  cxd4 {[%clk 0:02:33]} 6. exd4 {[%clk 0:02:57]}  Be7 {[%clk 0:02:30]} 7. Bd3 {[%clk 0:02:57]}  O-O {[%clk 0:02:29]} 8. O-O {[%clk 0:02:56]}  dxc4 {[%clk 0:02:28]} 9. Bxc4 {[%clk 0:02:57]}  b6 {[%clk 0:02:26]} 10. Qe2 {[%clk 0:02:56]}  Bb7 {[%clk 0:02:25]} 11. Rd1 {[%clk 0:02:56]}  Nbd7 {[%clk 0:01:58]} 12. Bg5 {[%clk 0:02:54]}  Rc8 {[%clk 0:01:49]} 13. Bb3 {[%clk 0:02:51]}  Re8 {[%clk 0:01:34]} 14. Ne5 {[%clk 0:02:47]}  Nd5 {[%clk 0:01:16]} 15. Bxe7 {[%clk 0:02:29]}  Rxe7 {[%clk 0:01:16]} 16. Rac1 {[%clk 0:02:15]}  Nxc3 {[%clk 0:01:13]} 17. bxc3 {[%clk 0:02:12]}  Nxe5 {[%clk 0:00:59]} 18. Qxe5 {[%clk 0:02:12]}  Rec7 {[%clk 0:00:52]} 19. c4 {[%clk 0:02:11]}  Qf6 {[%clk 0:00:38]} 20. Qxf6 {[%clk 0:01:50]}  gxf6 {[%clk 0:00:39]} 21. Rc3 {[%clk 0:01:45]}  Rd8 {[%clk 0:00:28]} 22. Rcc1 {[%clk 0:01:13]}  Rcd7 {[%clk 0:00:23]} 23. c5 {[%clk 0:01:11]}  Rxd4 {[%clk 0:00:15]} 24. Rxd4 {[%clk 0:01:11]}  Rxd4 {[%clk 0:00:15]} 25. cxb6 {[%clk 0:01:06]}  axb6 {[%clk 0:00:16]} 26. h3 {[%clk 0:01:06]}  Rd7 {[%clk 0:00:15]} 27. Ba4 {[%clk 0:00:59]}  Re7 {[%clk 0:00:14]} 28. Kf1 {[%clk 0:00:54]}  Bd5 {[%clk 0:00:14]} 29. Rc2 {[%clk 0:00:52]}  Ra7 {[%clk 0:00:13]} 30. Bb3 {[%clk 0:00:50]}  Bxb3 {[%clk 0:00:13]} 31. axb3 {[%clk 0:00:51]}  Ra1+ {[%clk 0:00:11]} 32. Ke2 {[%clk 0:00:49]}  Rb1 {[%clk 0:00:12]} 33. Rc3 {[%clk 0:00:49]}  Rb2+ {[%clk 0:00:11]} 34. Ke3 {[%clk 0:00:49]}  Kg7 {[%clk 0:00:10]} 35. g3 {[%clk 0:00:48]}  f5 {[%clk 0:00:09]} 36. f4 {[%clk 0:00:48]}  Kf6 {[%clk 0:00:00]} 37. Kd4 {[%clk 0:00:48]} 1-0


[Site "https://www.chess.com"]

[Event "Titled Tuesday Blitz May 23 Late 2023"]
[White "Gerbelli Neto, Eduardo"]
[Black "Torres Dominguez, David"]
[WhiteFideId "2103281"]
[BlackFideId "2220857"]
[WhiteElo "2178"]
[BlackElo "1999"]
[Result "1-0"]
[Round "10"]
[TimeControl "180+2"]
[Date "2023.05.23"]
[WhiteClock "0:00:57"]
[BlackClock "0:00:00"]

1. e4 {[%clk 0:03:00]}  e5 {[%clk 0:02:59]} 2. Nc3 {[%clk 0:02:58]}  Bc5 {[%clk 0:02:59]} 3. Bc4 {[%clk 0:02:58]}  Nf6 {[%clk 0:02:59]} 4. d3 {[%clk 0:02:58]}  d6 {[%clk 0:02:59]} 5. Bg5 {[%clk 0:02:53]}  h6 {[%clk 0:02:52]} 6. Bh4 {[%clk 0:02:53]}  Nc6 {[%clk 0:02:51]} 7. Nf3 {[%clk 0:02:49]}  g5 {[%clk 0:02:43]} 8. Bg3 {[%clk 0:02:49]}  Bg4 {[%clk 0:02:40]} 9. h3 {[%clk 0:02:43]}  Bh5 {[%clk 0:02:41]} 10. Nd5 {[%clk 0:02:36]}  Nd4 {[%clk 0:02:33]} 11. Ne3 {[%clk 0:02:25]}  Nxf3+ {[%clk 0:02:32]} 12. gxf3 {[%clk 0:02:26]}  Bxe3 {[%clk 0:02:20]} 13. fxe3 {[%clk 0:02:26]}  Qe7 {[%clk 0:02:16]} 14. c3 {[%clk 0:02:12]}  O-O-O {[%clk 0:02:16]} 15. Qe2 {[%clk 0:01:58]}  d5 {[%clk 0:02:15]} 16. exd5 {[%clk 0:01:56]}  Nxd5 {[%clk 0:02:16]} 17. O-O-O {[%clk 0:01:51]}  f6 {[%clk 0:02:07]} 18. h4 {[%clk 0:01:47]}  Nb6 {[%clk 0:02:05]} 19. Bb3 {[%clk 0:01:45]}  Bf7 {[%clk 0:01:37]} 20. e4 {[%clk 0:01:37]}  Bxb3 {[%clk 0:01:36]} 21. axb3 {[%clk 0:01:38]}  Qe6 {[%clk 0:01:35]} 22. Kc2 {[%clk 0:01:29]}  Nd7 {[%clk 0:01:34]} 23. b4 {[%clk 0:01:28]}  a6 {[%clk 0:01:34]} 24. Qe3 {[%clk 0:01:25]}  Qb6 {[%clk 0:01:27]} 25. Bf2 {[%clk 0:01:22]}  Qxe3 {[%clk 0:01:27]} 26. Bxe3 {[%clk 0:01:23]}  Nb8 {[%clk 0:01:14]} 27. Rd2 {[%clk 0:01:23]}  Nc6 {[%clk 0:01:09]} 28. Rdh2 {[%clk 0:01:23]}  Rhg8 {[%clk 0:01:09]} 29. hxg5 {[%clk 0:01:22]}  hxg5 {[%clk 0:01:07]} 30. Rh6 {[%clk 0:01:22]}  Rdf8 {[%clk 0:01:05]} 31. Rh7 {[%clk 0:01:22]}  b6 {[%clk 0:00:46]} 32. b3 {[%clk 0:01:14]}  g4 {[%clk 0:00:26]} 33. f4 {[%clk 0:01:12]}  exf4 {[%clk 0:00:20]} 34. Bxf4 {[%clk 0:01:12]}  Ne5 {[%clk 0:00:20]} 35. d4 {[%clk 0:01:13]}  Nd7 {[%clk 0:00:17]} 36. Rg1 {[%clk 0:01:09]}  Re8 {[%clk 0:00:16]} 37. Kd3 {[%clk 0:01:09]}  Rg6 {[%clk 0:00:12]} 38. Rf7 {[%clk 0:01:05]}  Rf8 {[%clk 0:00:10]} 39. Rh7 {[%clk 0:01:04]}  Rfg8 {[%clk 0:00:08]} 40. Bg3 {[%clk 0:01:04]}  R6g7 {[%clk 0:00:07]} 41. Rgh1 {[%clk 0:01:04]}  Rxh7 {[%clk 0:00:05]} 42. Rxh7 {[%clk 0:01:05]}  Kb7 {[%clk 0:00:03]} 43. Rxd7 {[%clk 0:01:04]}  Kc6 {[%clk 0:00:03]} 44. Rxc7+ {[%clk 0:01:05]}  Kb5 {[%clk 0:00:03]} 45. Rf7 {[%clk 0:01:02]}  Rg6 {[%clk 0:00:02]} 46. Ke3 {[%clk 0:00:58]}  a5 {[%clk 0:00:02]} 47. bxa5 {[%clk 0:00:58]}  bxa5 {[%clk 0:00:01]} 48. Kf4 {[%clk 0:00:58]}  a4 {[%clk 0:00:01]} 49. bxa4+ {[%clk 0:00:57]}  Kxa4 {[%clk 0:00:00]} 50. Rb7 {[%clk 0:00:57]} 1-0


[Site "https://www.chess.com"]

[Event "Titled Tuesday Blitz May 23 Late 2023"]
[White "Howell, David W L"]
[Black "Parizek, Vojtech"]
[WhiteFideId "410608"]
[BlackFideId "360996"]
[WhiteElo "2567"]
[BlackElo "2115"]
[Result "1-0"]
[Round "10"]
[TimeControl "180+2"]
[Date "2023.05.23"]
[WhiteClock "0:00:10"]
[BlackClock "0:00:00"]

1. e4 {[%clk 0:02:59]}  c5 {[%clk 0:02:58]} 2. Nf3 {[%clk 0:02:58]}  d6 {[%clk 0:02:59]} 3. d4 {[%clk 0:02:58]}  cxd4 {[%clk 0:02:59]} 4. Nxd4 {[%clk 0:02:58]}  Nf6 {[%clk 0:03:00]} 5. Nc3 {[%clk 0:02:58]}  a6 {[%clk 0:03:01]} 6. a4 {[%clk 0:02:47]}  Nc6 {[%clk 0:02:58]} 7. Be2 {[%clk 0:02:33]}  e6 {[%clk 0:02:58]} 8. Be3 {[%clk 0:02:32]}  Be7 {[%clk 0:02:56]} 9. O-O {[%clk 0:02:33]}  Bd7 {[%clk 0:02:52]} 10. Qd2 {[%clk 0:02:30]}  Qc7 {[%clk 0:02:51]} 11. Rfd1 {[%clk 0:02:28]}  O-O {[%clk 0:02:47]} 12. f3 {[%clk 0:02:26]}  Rac8 {[%clk 0:02:35]} 13. Bf1 {[%clk 0:02:12]}  Nb4 {[%clk 0:02:20]} 14. Nce2 {[%clk 0:01:32]}  d5 {[%clk 0:02:16]} 15. e5 {[%clk 0:01:13]}  Ne8 {[%clk 0:01:33]} 16. c3 {[%clk 0:01:13]}  Nc6 {[%clk 0:01:30]} 17. f4 {[%clk 0:01:12]}  f6 {[%clk 0:01:26]} 18. exf6 {[%clk 0:00:54]}  Nxf6 {[%clk 0:01:27]} 19. g3 {[%clk 0:00:55]}  Ne4 {[%clk 0:01:24]} 20. Qd3 {[%clk 0:00:55]}  e5 {[%clk 0:01:22]} 21. Nb5 {[%clk 0:00:29]}  axb5 {[%clk 0:01:11]} 22. Qxd5+ {[%clk 0:00:29]}  Kh8 {[%clk 0:01:10]} 23. Qxd7 {[%clk 0:00:29]}  bxa4 {[%clk 0:00:56]} 24. Qxc7 {[%clk 0:00:23]}  Rxc7 {[%clk 0:00:56]} 25. Rxa4 {[%clk 0:00:24]}  Nf6 {[%clk 0:00:45]} 26. Bh3 {[%clk 0:00:19]}  Re8 {[%clk 0:00:34]} 27. Bb6 {[%clk 0:00:18]}  Rcc8 {[%clk 0:00:22]} 28. Bxc8 {[%clk 0:00:17]}  Rxc8 {[%clk 0:00:23]} 29. Kg2 {[%clk 0:00:16]}  e4 {[%clk 0:00:20]} 30. Nd4 {[%clk 0:00:14]}  Nd5 {[%clk 0:00:14]} 31. Nxc6 {[%clk 0:00:13]}  bxc6 {[%clk 0:00:15]} 32. Bg1 {[%clk 0:00:12]}  Rb8 {[%clk 0:00:14]} 33. Rxe4 {[%clk 0:00:12]}  Rxb2+ {[%clk 0:00:14]} 34. Kf3 {[%clk 0:00:12]}  Rb7 {[%clk 0:00:02]} 35. Rd3 {[%clk 0:00:10]}  Nf6 {[%clk 0:00:01]} 36. Re6 {[%clk 0:00:10]}  Kg8 {[%clk 0:00:01]} 37. Rxc6 {[%clk 0:00:10]}  Kf7 {[%clk 0:00:00]} 38. g4 {[%clk 0:00:10]} 1-0


[Site "https://www.chess.com"]

[Event "Titled Tuesday Blitz May 23 Late 2023"]
[White "Cardozo Munar, Carlos Eduardo"]
[Black "Shapiro, Daniel"]
[WhiteFideId "4409477"]
[BlackFideId "2001780"]
[WhiteElo "2067"]
[BlackElo "2330"]
[Result "1/2-1/2"]
[Round "10"]
[TimeControl "180+2"]
[Date "2023.05.23"]
[WhiteClock "0:00:46"]
[BlackClock "0:00:07"]

1. e4 {[%clk 0:02:46]}  c5 {[%clk 0:02:58]} 2. Nf3 {[%clk 0:02:45]}  e6 {[%clk 0:02:58]} 3. Nc3 {[%clk 0:02:45]}  a6 {[%clk 0:02:58]} 4. a4 {[%clk 0:02:44]}  b6 {[%clk 0:02:53]} 5. Bc4 {[%clk 0:02:44]}  Bb7 {[%clk 0:02:51]} 6. O-O {[%clk 0:02:44]}  d6 {[%clk 0:02:43]} 7. d4 {[%clk 0:02:44]}  cxd4 {[%clk 0:02:43]} 8. Nxd4 {[%clk 0:02:44]}  Nd7 {[%clk 0:02:37]} 9. Bxe6 {[%clk 0:02:39]}  fxe6 {[%clk 0:02:08]} 10. Nxe6 {[%clk 0:02:40]}  Qc8 {[%clk 0:01:52]} 11. Qg4 {[%clk 0:02:24]}  Ngf6 {[%clk 0:01:47]} 12. Nxg7+ {[%clk 0:01:43]}  Kf7 {[%clk 0:01:23]} 13. Qe6+ {[%clk 0:01:42]}  Kxg7 {[%clk 0:01:21]} 14. Bg5 {[%clk 0:01:43]}  Qe8 {[%clk 0:01:15]} 15. Qh3 {[%clk 0:01:41]}  Qg6 {[%clk 0:01:13]} 16. f4 {[%clk 0:01:41]}  h6 {[%clk 0:01:00]} 17. Bh4 {[%clk 0:01:36]}  Qg4 {[%clk 0:00:59]} 18. e5 {[%clk 0:01:18]}  dxe5 {[%clk 0:00:37]} 19. fxe5 {[%clk 0:01:18]}  Qd4+ {[%clk 0:00:37]} 20. Kh1 {[%clk 0:01:09]}  Qxe5 {[%clk 0:00:37]} 21. Rf5 {[%clk 0:00:57]}  Qd4 {[%clk 0:00:22]} 22. Raf1 {[%clk 0:00:55]}  Bc5 {[%clk 0:00:17]} 23. Bxf6+ {[%clk 0:00:49]}  Nxf6 {[%clk 0:00:15]} 24. Rxf6 {[%clk 0:00:50]}  Qxf6 {[%clk 0:00:09]} 25. Qd7+ {[%clk 0:00:50]}  Qe7 {[%clk 0:00:07]} 26. Qg4+ {[%clk 0:00:46]}  Qg5 {[%clk 0:00:07]} 27. Qd7+ {[%clk 0:00:46]}  Qe7 {[%clk 0:00:07]} 28. Qg4+ {[%clk 0:00:46]}  Qg5 {[%clk 0:00:07]} 29. Qd7+ {[%clk 0:00:46]}  Qe7 {[%clk 0:00:07]} 1/2-1/2


[Site "https://www.chess.com"]

[Event "Titled Tuesday Blitz May 23 Late 2023"]
[White "Kovacevic, Radmila"]
[Black "Einarsson, Halldor Gretar"]
[WhiteFideId "933171"]
[BlackFideId "2300150"]
[WhiteElo "2194"]
[BlackElo "2110"]
[Result "0-1"]
[Round "10"]
[TimeControl "180+2"]
[Date "2023.05.23"]
[WhiteClock "0:00:43"]
[BlackClock "0:01:10"]

1. e4 {[%clk 0:02:58]}  c5 {[%clk 0:02:58]} 2. Nf3 {[%clk 0:02:57]}  Nc6 {[%clk 0:02:58]} 3. c4 {[%clk 0:02:56]}  e5 {[%clk 0:02:57]} 4. Nc3 {[%clk 0:02:55]}  d6 {[%clk 0:02:40]} 5. h3 {[%clk 0:02:54]}  g6 {[%clk 0:02:33]} 6. Bd3 {[%clk 0:02:49]}  Bh6 {[%clk 0:02:31]} 7. g4 {[%clk 0:02:47]}  Bf4 {[%clk 0:02:29]} 8. a3 {[%clk 0:02:43]}  h5 {[%clk 0:02:24]} 9. Rg1 {[%clk 0:02:41]}  hxg4 {[%clk 0:02:20]} 10. hxg4 {[%clk 0:02:42]}  Nf6 {[%clk 0:02:06]} 11. g5 {[%clk 0:02:33]}  Nh7 {[%clk 0:02:05]} 12. Nd5 {[%clk 0:02:32]}  Be6 {[%clk 0:01:48]} 13. Qa4 {[%clk 0:02:17]}  Kf8 {[%clk 0:01:31]} 14. Nxf4 {[%clk 0:01:58]}  exf4 {[%clk 0:01:29]} 15. Be2 {[%clk 0:01:45]}  Ne5 {[%clk 0:01:13]} 16. Nxe5 {[%clk 0:00:59]}  dxe5 {[%clk 0:01:12]} 17. Qa5 {[%clk 0:00:43]}  Qxa5 {[%clk 0:01:10]} 0-1


[Site "https://www.chess.com"]